[Event "*** Titled Tuesday Blitz"]
[Site "Chess.com"]
[Date "2018.06.05"]
[Round "7"]
[White "dalmatinac101"]
[Black "BlueWizzard"]
[Result "1-0"]
[WhiteElo "2713"]
[BlackElo "2472"]
[TimeControl "180+2"]
[EndTime "14:41:05 PDT"]
[Termination "dalmatinac101 won by resignation"]

1. e4 {[%clk 0:02:09.8]} 1... c5 {[%clk 0:03:01.9]} 2. Nf3 {[%clk 0:02:10.3]}
2... Nc6 {[%clk 0:03:02.6]} 3. Bb5 {[%clk 0:02:10.9]} 3... e6 {[%clk 0:03:01.3]}
4. b3 {[%clk 0:02:11.5]} 4... Nge7 {[%clk 0:03:01.1]} 5. Bb2 {[%clk 0:02:12.4]}
5... a6 {[%clk 0:03:02.2]} 6. Bxc6 {[%clk 0:02:13.7]} 6... bxc6 {[%clk
0:03:03.2]} 7. O-O {[%clk 0:02:15.6]} 7... Ng6 {[%clk 0:03:03.6]} 8. e5 {[%clk
0:02:15.3]} 8... d5 {[%clk 0:03:03.6]} 9. exd6 {[%clk 0:02:14.7]} 9... Bxd6
{[%clk 0:03:04.3]} 10. Bxg7 {[%clk 0:02:14.2]} 10... Rg8 {[%clk 0:03:04.9]} 11.
Bb2 {[%clk 0:02:15.8]} 11... Nf4 {[%clk 0:02:54.8]} 12. g3 {[%clk 0:02:16.6]}
12... Qc7 {[%clk 0:02:53]} 13. Nc3 {[%clk 0:02:12]} 13... Nh5 {[%clk 0:02:50.5]}
14. Ne4 {[%clk 0:02:12.2]} 14... Bd7 {[%clk 0:02:51.1]} 15. Nxd6+ {[%clk
0:02:12.5]} 15... Qxd6 {[%clk 0:02:51.9]} 16. Ne5 {[%clk 0:02:12.3]} 16... Ng7
{[%clk 0:02:48.1]} 17. Nc4 {[%clk 0:02:06.4]} 17... Qe7 {[%clk 0:02:47.6]} 18.
Qg4 {[%clk 0:02:02.3]} 18... Kf8 {[%clk 0:02:46.8]} 19. Be5 {[%clk 0:02:00.2]}
19... Nf5 {[%clk 0:02:45.8]} 20. Qh5 {[%clk 0:01:56.9]} 20... f6 {[%clk
0:02:43.8]} 21. Bb2 {[%clk 0:01:54]} 21... Be8 {[%clk 0:02:39.2]} 22. Qf3 {[%clk
0:01:49.2]} 22... Rg5 {[%clk 0:02:36.4]} 23. Rae1 {[%clk 0:01:48.4]} 23... Rd8
{[%clk 0:02:32.1]} 24. h4 {[%clk 0:01:40.4]} 24... Bh5 {[%clk 0:02:29.6]} 25.
Qxc6 {[%clk 0:01:31.4]} 25... Nxh4 {[%clk 0:01:47.3]} 26. Rxe6 {[%clk
0:01:31.5]} 26... Qg7 {[%clk 0:01:48.2]} 27. Rxf6+ {[%clk 0:01:19.5]} 27... Kg8
{[%clk 0:01:49.1]} 28. Qe6+ {[%clk 0:01:18.8]} 28... Bf7 {[%clk 0:01:48.9]} 29.
Qxf7+ {[%clk 0:01:09]} 29... Qxf7 {[%clk 0:01:49.2]} 30. Rxf7 {[%clk 0:01:10.9]}
30... Kxf7 {[%clk 0:01:50.5]} 31. d3 {[%clk 0:01:00.2]} 31... h5 {[%clk
0:01:42.5]} 32. Nd2 {[%clk 0:00:53]} 32... Ng6 {[%clk 0:01:39.9]} 33. Ne4 {[%clk
0:00:46.1]} 33... Rf5 {[%clk 0:01:40.6]} 34. Kg2 {[%clk 0:00:47.6]} 34... Ne5
{[%clk 0:01:32.7]} 35. Nxc5 {[%clk 0:00:39.7]} 35... Ng4 {[%clk 0:01:33.2]} 36.
Ne4 {[%clk 0:00:37.5]} 36... a5 {[%clk 0:01:30.6]} 37. Rh1 {[%clk 0:00:30.6]}
37... Kg6 {[%clk 0:01:31.2]} 38. Re1 {[%clk 0:00:25.5]} 38... Rdf8 {[%clk
0:01:29.9]} 39. Re2 {[%clk 0:00:25.9]} 39... h4 {[%clk 0:01:22.5]} 40. gxh4
{[%clk 0:00:26.1]} 40... Rf3 {[%clk 0:01:20]} 41. d4 {[%clk 0:00:20.6]} 41...
Kh5 {[%clk 0:01:08.7]} 42. d5 {[%clk 0:00:21.8]} 42... Kxh4 {[%clk 0:01:05.4]}
43. d6 {[%clk 0:00:19.9]} 43... Rh3 {[%clk 0:01:06.5]} 44. d7 {[%clk 0:00:18.4]}
44... Rd8 {[%clk 0:01:03]} 45. Nf6 {[%clk 0:00:17.3]} 45... Rh2+ {[%clk
0:01:03.1]} 46. Kg1 {[%clk 0:00:18]} 46... Kh3 {[%clk 0:01:03.1]} 47. Nxg4
{[%clk 0:00:18]} 47... Rg2+ {[%clk 0:01:04.1]} 48. Kf1 {[%clk 0:00:19.3]} 48...
Rxg4 {[%clk 0:01:05.1]} 49. Re3+ {[%clk 0:00:20.6]} 49... Kh2 {[%clk 0:01:05.7]}
50. Be5+ {[%clk 0:00:22]} 1-0

[Event "*** Titled Tuesday Blitz"]
[Site "Chess.com"]
[Date "2018.06.05"]
[Round "7"]
[White "Albertu"]
[Black "Zufi1811"]
[Result "1-0"]
[WhiteElo "2327"]
[BlackElo "2454"]
[TimeControl "180+2"]
[EndTime "14:41:14 PDT"]
[Termination "Albertu won by resignation"]

1. e4 {[%clk 0:03:01.9]} 1... c5 {[%clk 0:02:59.1]} 2. Nf3 {[%clk 0:03:03.1]}
2... d6 {[%clk 0:02:59.8]} 3. d4 {[%clk 0:03:04.7]} 3... cxd4 {[%clk 0:03:00.4]}
4. Nxd4 {[%clk 0:03:06.6]} 4... Nf6 {[%clk 0:03:01.2]} 5. Nc3 {[%clk 0:03:08]}
5... a6 {[%clk 0:03:02.4]} 6. h3 {[%clk 0:03:06.7]} 6... e5 {[%clk 0:03:02.7]}
7. Nde2 {[%clk 0:03:06.7]} 7... h5 {[%clk 0:03:03.4]} 8. Bg5 {[%clk 0:03:06.4]}
8... Be6 {[%clk 0:03:04.7]} 9. Ng3 {[%clk 0:03:04.7]} 9... g6 {[%clk 0:02:58.4]}
10. Qf3 {[%clk 0:02:43.6]} 10... Nbd7 {[%clk 0:02:56.5]} 11. O-O-O {[%clk
0:02:35.3]} 11... h4 {[%clk 0:02:41.2]} 12. Nf5 {[%clk 0:02:26.9]} 12... Rh5
{[%clk 0:02:25.1]} 13. Bxh4 {[%clk 0:01:55.3]} 13... gxf5 {[%clk 0:02:17]} 14.
Qxh5 {[%clk 0:01:55.2]} 14... Nxh5 {[%clk 0:02:15.3]} 15. Bxd8 {[%clk
0:01:56.7]} 15... Kxd8 {[%clk 0:02:16.6]} 16. exf5 {[%clk 0:01:58.2]} 16... Bxf5
{[%clk 0:02:07.8]} 17. g4 {[%clk 0:01:59.3]} 17... Bg6 {[%clk 0:01:47.4]} 18.
gxh5 {[%clk 0:02:00]} 18... Bxh5 {[%clk 0:01:49.3]} 19. Be2 {[%clk 0:02:01.1]}
19... Bg6 {[%clk 0:01:42]} 20. h4 {[%clk 0:02:00.2]} 20... Nf6 {[%clk
0:01:37.9]} 21. h5 {[%clk 0:01:53.6]} 21... Bf5 {[%clk 0:01:38.3]} 22. h6 {[%clk
0:01:33.2]} 22... Ke7 {[%clk 0:01:27]} 23. Bd3 {[%clk 0:01:31]} 23... e4 {[%clk
0:01:23.6]} 24. Rde1 {[%clk 0:01:16.4]} 24... d5 {[%clk 0:01:22.1]} 25. f3
{[%clk 0:01:06.9]} 25... Kd6 {[%clk 0:00:52.3]} 26. fxe4 {[%clk 0:01:07.6]}
26... dxe4 {[%clk 0:00:52.5]} 27. Nxe4+ {[%clk 0:01:08.8]} 27... Bxe4 {[%clk
0:00:49.5]} 28. Bxe4 {[%clk 0:01:10.7]} 28... Re8 {[%clk 0:00:49.9]} 29. Bxb7
{[%clk 0:01:09.7]} 29... Bxh6+ {[%clk 0:00:50.3]} 30. Kb1 {[%clk 0:01:08.9]}
30... Rxe1+ {[%clk 0:00:47.4]} 31. Rxe1 {[%clk 0:01:10.8]} 31... a5 {[%clk
0:00:48.5]} 32. c3 {[%clk 0:00:52.9]} 32... Ng4 {[%clk 0:00:48.6]} 33. Kc2
{[%clk 0:00:48.8]} 33... f5 {[%clk 0:00:47.4]} 34. Bc8 {[%clk 0:00:47.2]} 34...
Ne3+ {[%clk 0:00:45.9]} 35. Kd3 {[%clk 0:00:40.2]} 35... f4 {[%clk 0:00:42.6]}
36. Bb7 {[%clk 0:00:38.6]} 36... Ke5 {[%clk 0:00:38.2]} 37. Bf3 {[%clk
0:00:38.5]} 37... Bf8 {[%clk 0:00:36.2]} 38. Rh1 {[%clk 0:00:36.9]} 38... Bc5
{[%clk 0:00:32]} 39. Rh5+ {[%clk 0:00:36.7]} 39... Kd6 {[%clk 0:00:33.4]} 40.
Ke4 {[%clk 0:00:33.9]} 40... Nc4 {[%clk 0:00:31.6]} 41. Rh6+ {[%clk 0:00:32.4]}
41... Kc7 {[%clk 0:00:29.7]} 42. Kd5 {[%clk 0:00:25.1]} 1-0

[Event "*** Titled Tuesday Blitz"]
[Site "Chess.com"]
[Date "2018.06.05"]
[Round "7"]
[White "Korchmar_Vasiliy"]
[Black "TigranLPetrosyan"]
[Result "0-1"]
[WhiteElo "2706"]
[BlackElo "2814"]
[TimeControl "180+2"]
[EndTime "14:41:15 PDT"]
[Termination "TigranLPetrosyan won by resignation"]

1. d4 {[%clk 0:02:58.2]} 1... g6 {[%clk 0:03:00.9]} 2. e4 {[%clk 0:02:59.1]}
2... Bg7 {[%clk 0:03:02.2]} 3. Nc3 {[%clk 0:03:00.7]} 3... a6 {[%clk 0:03:03]}
4. f4 {[%clk 0:03:01.9]} 4... b5 {[%clk 0:03:04.2]} 5. Nf3 {[%clk 0:03:03]} 5...
Bb7 {[%clk 0:03:05.7]} 6. Bd3 {[%clk 0:03:04.2]} 6... d6 {[%clk 0:03:07.1]} 7.
a4 {[%clk 0:03:02.9]} 7... b4 {[%clk 0:03:07.5]} 8. Ne2 {[%clk 0:03:04.1]} 8...
Nd7 {[%clk 0:03:08.9]} 9. O-O {[%clk 0:03:04.2]} 9... c5 {[%clk 0:03:10.8]} 10.
c3 {[%clk 0:03:05.3]} 10... bxc3 {[%clk 0:02:59.4]} 11. bxc3 {[%clk 0:03:07.2]}
11... Ngf6 {[%clk 0:02:54.8]} 12. e5 {[%clk 0:03:08.5]} 12... Nd5 {[%clk
0:02:55.4]} 13. a5 {[%clk 0:03:10]} 13... O-O {[%clk 0:02:52.6]} 14. Bd2 {[%clk
0:03:08.2]} 14... e6 {[%clk 0:02:37.9]} 15. Ng3 {[%clk 0:02:42.2]} 15... Ne7
{[%clk 0:02:17.3]} 16. Qe2 {[%clk 0:02:13]} 16... cxd4 {[%clk 0:01:33.6]} 17.
cxd4 {[%clk 0:02:13.6]} 17... dxe5 {[%clk 0:01:34.9]} 18. fxe5 {[%clk 0:02:10]}
18... Bxf3 {[%clk 0:01:28.8]} 19. Rxf3 {[%clk 0:02:04.5]} 19... Nxe5 {[%clk
0:01:22.9]} 20. dxe5 {[%clk 0:01:42.6]} 20... Qd4+ {[%clk 0:01:22.1]} 21. Qf2
{[%clk 0:01:02]} 21... Qxa1+ {[%clk 0:01:24]} 22. Bf1 {[%clk 0:01:00.9]} 22...
Qxe5 {[%clk 0:01:17.7]} 23. h4 {[%clk 0:01:00.9]} 23... Qd4 {[%clk 0:01:16.1]}
24. Be3 {[%clk 0:00:59]} 24... Qxh4 {[%clk 0:01:17]} 25. Rf4 {[%clk 0:00:57.5]}
25... Qg5 {[%clk 0:01:12.2]} 26. Ne4 {[%clk 0:00:53.8]} 26... Qe5 {[%clk
0:00:51.3]} 27. Bd4 {[%clk 0:00:16.9]} 27... Qxd4 {[%clk 0:00:45.9]} 28. Nf6+
{[%clk 0:00:18.1]} 28... Qxf6 {[%clk 0:00:43]} 29. Rxf6 {[%clk 0:00:19.1]} 29...
Bxf6 {[%clk 0:00:44.9]} 30. Qxf6 {[%clk 0:00:20.3]} 30... Nd5 {[%clk 0:00:46.5]}
31. Qe5 {[%clk 0:00:20.3]} 31... Rfc8 {[%clk 0:00:46.5]} 32. Bd3 {[%clk
0:00:19.8]} 32... Rc5 {[%clk 0:00:39.2]} 33. Kh2 {[%clk 0:00:16]} 33... Rxa5
{[%clk 0:00:40]} 34. Qd6 {[%clk 0:00:17.3]} 34... Rf8 {[%clk 0:00:39.2]} 35. Be4
{[%clk 0:00:18.4]} 35... Nf6 {[%clk 0:00:35.1]} 36. Bd3 {[%clk 0:00:17.7]} 36...
Rh5+ {[%clk 0:00:34.4]} 37. Kg1 {[%clk 0:00:18.6]} 37... Rd5 {[%clk 0:00:35.5]}
38. Qxa6 {[%clk 0:00:19.1]} 38... Rfd8 {[%clk 0:00:35.3]} 39. Bf1 {[%clk
0:00:20]} 39... Ng4 {[%clk 0:00:35.5]} 40. Qc4 {[%clk 0:00:19.2]} 40... h5
{[%clk 0:00:36.4]} 41. Qf4 {[%clk 0:00:19.7]} 41... Rf5 {[%clk 0:00:35.7]} 42.
Qc1 {[%clk 0:00:20]} 42... Rfd5 {[%clk 0:00:35.4]} 43. Qf4 {[%clk 0:00:20.1]}
43... Rd1 {[%clk 0:00:36]} 44. Qf3 {[%clk 0:00:20.2]} 44... R8d2 {[%clk
0:00:36.6]} 45. Qa8+ {[%clk 0:00:20.7]} 45... Kg7 {[%clk 0:00:38]} 0-1

[Event "*** Titled Tuesday Blitz"]
[Site "Chess.com"]
[Date "2018.06.05"]
[Round "7"]
[White "AlexTruskavetsky"]
[Black "gpeloui"]
[Result "1-0"]
[WhiteElo "2285"]
[BlackElo "2299"]
[TimeControl "180+2"]
[EndTime "14:41:19 PDT"]
[Termination "AlexTruskavetsky won by checkmate"]

1. d4 {[%clk 0:03:01.9]} 1... Nf6 {[%clk 0:02:59.6]} 2. c4 {[%clk 0:03:01.2]}
2... g6 {[%clk 0:03:01]} 3. g3 {[%clk 0:02:58]} 3... Bg7 {[%clk 0:03:02.9]} 4.
Bg2 {[%clk 0:02:58.5]} 4... d6 {[%clk 0:02:58.9]} 5. Nf3 {[%clk 0:02:57.6]} 5...
O-O {[%clk 0:03:00.8]} 6. O-O {[%clk 0:02:57.9]} 6... Nc6 {[%clk 0:02:59.8]} 7.
Nc3 {[%clk 0:02:54.5]} 7... a6 {[%clk 0:02:59.9]} 8. d5 {[%clk 0:02:53.6]} 8...
Na5 {[%clk 0:02:55.2]} 9. Nd2 {[%clk 0:02:54.2]} 9... c5 {[%clk 0:02:53.2]} 10.
Rb1 {[%clk 0:02:46.9]} 10... Rb8 {[%clk 0:02:49.1]} 11. b3 {[%clk 0:02:44.6]}
11... b5 {[%clk 0:02:46.8]} 12. Bb2 {[%clk 0:02:40.6]} 12... e5 {[%clk
0:02:38.5]} 13. dxe6 {[%clk 0:02:39.4]} 13... Bxe6 {[%clk 0:02:37.7]} 14. cxb5
{[%clk 0:02:38.4]} 14... axb5 {[%clk 0:02:35]} 15. Nce4 {[%clk 0:02:31.6]} 15...
c4 {[%clk 0:02:13.2]} 16. Bxf6 {[%clk 0:02:19.4]} 16... Bxf6 {[%clk 0:02:13.9]}
17. Nxf6+ {[%clk 0:02:20.3]} 17... Qxf6 {[%clk 0:02:15.4]} 18. Ne4 {[%clk
0:02:21.2]} 18... Qe5 {[%clk 0:01:58]} 19. f4 {[%clk 0:02:05.1]} 19... Qg7
{[%clk 0:01:45.8]} 20. Nxd6 {[%clk 0:02:03.9]} 20... cxb3 {[%clk 0:01:42.2]} 21.
axb3 {[%clk 0:02:03.6]} 21... Rfd8 {[%clk 0:01:43.7]} 22. e4 {[%clk 0:02:02.6]}
22... Qc3 {[%clk 0:01:27]} 23. e5 {[%clk 0:02:01.3]} 23... Bxb3 {[%clk 0:01:26]}
24. Qg4 {[%clk 0:01:55.8]} 24... Bc2 {[%clk 0:01:10.8]} 25. Rbc1 {[%clk
0:01:45.3]} 25... b4 {[%clk 0:01:11.3]} 26. Kh1 {[%clk 0:01:30.1]} 26... Qd2
{[%clk 0:00:29.1]} 27. f5 {[%clk 0:01:01.6]} 27... b3 {[%clk 0:00:29.2]} 28.
fxg6 {[%clk 0:01:02.3]} 28... hxg6 {[%clk 0:00:29]} 29. Nxf7 {[%clk 0:00:54.7]}
29... Qxc1 {[%clk 0:00:19.5]} 30. Rxc1 {[%clk 0:00:24.8]} 30... b2 {[%clk
0:00:19.7]} 31. Rf1 {[%clk 0:00:21.9]} 31... b1=Q {[%clk 0:00:19.3]} 32. Nxd8
{[%clk 0:00:22.4]} 32... Qb5 {[%clk 0:00:11.6]} 33. Qe6+ {[%clk 0:00:20.7]}
33... Kg7 {[%clk 0:00:11.4]} 34. Qf6+ {[%clk 0:00:17.5]} 34... Kg8 {[%clk
0:00:11.7]} 35. Qf7+ {[%clk 0:00:17.4]} 35... Kh8 {[%clk 0:00:12.9]} 36. Qf8+
{[%clk 0:00:17.6]} 36... Kh7 {[%clk 0:00:14.3]} 37. Rf7# {[%clk 0:00:18.3]} 1-0

[Event "*** Titled Tuesday Blitz"]
[Site "Chess.com"]
[Date "2018.06.05"]
[Round "7"]
[White "andrewtnb"]
[Black "dmosesov"]
[Result "1-0"]
[WhiteElo "2387"]
[BlackElo "2191"]
[TimeControl "180+2"]
[EndTime "14:41:23 PDT"]
[Termination "andrewtnb won on time"]

1. d4 {[%clk 0:02:57.3]} 1... Nf6 {[%clk 0:02:59.9]} 2. Nf3 {[%clk 0:02:56.8]}
2... b6 {[%clk 0:03:00.4]} 3. g3 {[%clk 0:02:56.9]} 3... Bb7 {[%clk 0:03:01.2]}
4. Bg2 {[%clk 0:02:58.8]} 4... g6 {[%clk 0:02:58.9]} 5. O-O {[%clk 0:03:00.1]}
5... Bg7 {[%clk 0:03:00.1]} 6. c4 {[%clk 0:02:59.6]} 6... O-O {[%clk 0:03:01]}
7. Nc3 {[%clk 0:02:59.9]} 7... Ne4 {[%clk 0:03:01.1]} 8. Bd2 {[%clk 0:02:57.3]}
8... d6 {[%clk 0:02:41]} 9. Qc2 {[%clk 0:02:52]} 9... Nxd2 {[%clk 0:02:37.2]}
10. Qxd2 {[%clk 0:02:53.9]} 10... Nd7 {[%clk 0:02:36.5]} 11. e4 {[%clk
0:02:47.7]} 11... e5 {[%clk 0:02:35.8]} 12. d5 {[%clk 0:02:46]} 12... a5 {[%clk
0:02:35.9]} 13. b3 {[%clk 0:02:38.5]} 13... h6 {[%clk 0:02:36.4]} 14. Ne1 {[%clk
0:02:20.7]} 14... f5 {[%clk 0:02:31.1]} 15. Nd3 {[%clk 0:02:21]} 15... f4 {[%clk
0:02:16.7]} 16. Bh3 {[%clk 0:02:19]} 16... g5 {[%clk 0:02:00.2]} 17. Be6+ {[%clk
0:02:17]} 17... Kh8 {[%clk 0:01:59.7]} 18. f3 {[%clk 0:02:10.9]} 18... Nf6
{[%clk 0:01:55.3]} 19. g4 {[%clk 0:02:10.4]} 19... Bc8 {[%clk 0:01:52]} 20. Bxc8
{[%clk 0:02:08.7]} 20... Rxc8 {[%clk 0:01:48.2]} 21. h3 {[%clk 0:02:09.2]} 21...
h5 {[%clk 0:01:43.1]} 22. Rf2 {[%clk 0:02:05.8]} 22... Qe8 {[%clk 0:01:42.6]}
23. Rg2 {[%clk 0:02:04.7]} 23... hxg4 {[%clk 0:01:36.7]} 24. hxg4 {[%clk
0:02:06.6]} 24... Qg6 {[%clk 0:01:37.9]} 25. Kf2 {[%clk 0:02:03.3]} 25... Kg8
{[%clk 0:01:38.8]} 26. Rh1 {[%clk 0:02:03.4]} 26... Kf7 {[%clk 0:01:39.5]} 27.
Rgh2 {[%clk 0:02:00.3]} 27... Rh8 {[%clk 0:01:38.5]} 28. Rxh8 {[%clk 0:01:58.3]}
28... Rxh8 {[%clk 0:01:40.4]} 29. Rxh8 {[%clk 0:01:57]} 29... Bxh8 {[%clk
0:01:42]} 30. Kg2 {[%clk 0:01:53.4]} 30... Qh6 {[%clk 0:01:28.4]} 31. Nb5 {[%clk
0:01:46.8]} 31... Nxg4 {[%clk 0:00:27.8]} 32. fxg4 {[%clk 0:01:45.2]} 32... Qh4
{[%clk 0:00:27.9]} 33. Nf2 {[%clk 0:01:14.9]} 33... Qg3+ {[%clk 0:00:28.4]} 34.
Kf1 {[%clk 0:01:15.6]} 34... f3 {[%clk 0:00:26.5]} 35. Qe3 {[%clk 0:01:11.2]}
35... Bf6 {[%clk 0:00:17.5]} 36. Nxc7 {[%clk 0:01:09.9]} 36... Qg2+ {[%clk
0:00:17.4]} 37. Ke1 {[%clk 0:01:10.3]} 37... Qg1+ {[%clk 0:00:19.3]} 38. Kd2
{[%clk 0:01:10.7]} 38... Qb1 {[%clk 0:00:13.1]} 39. Qxf3 {[%clk 0:01:07.2]}
39... Qxa2+ {[%clk 0:00:12.8]} 40. Ke1 {[%clk 0:01:07]} 40... a4 {[%clk
0:00:12]} 41. Qf5 {[%clk 0:00:57.5]} 41... axb3 {[%clk 0:00:02.5]} 42. Qe6+
{[%clk 0:00:57.8]} 1-0

[Event "*** Titled Tuesday Blitz"]
[Site "Chess.com"]
[Date "2018.06.05"]
[Round "7"]
[White "rasmussvane"]
[Black "littleplotkin"]
[Result "0-1"]
[WhiteElo "2570"]
[BlackElo "2452"]
[TimeControl "180+2"]
[EndTime "14:41:29 PDT"]
[Termination "littleplotkin won by resignation"]

1. Nf3 {[%clk 0:03:01.9]} 1... g6 {[%clk 0:02:59.6]} 2. e4 {[%clk 0:03:02.4]}
2... Bg7 {[%clk 0:03:01.5]} 3. d4 {[%clk 0:03:03.8]} 3... d6 {[%clk 0:03:02.8]}
4. Bd3 {[%clk 0:03:05.4]} 4... Nf6 {[%clk 0:03:00.9]} 5. O-O {[%clk 0:03:06.7]}
5... Bg4 {[%clk 0:02:55.1]} 6. Nbd2 {[%clk 0:03:06.5]} 6... Nc6 {[%clk
0:02:55.5]} 7. h3 {[%clk 0:03:06.1]} 7... Bxf3 {[%clk 0:02:49.9]} 8. Nxf3 {[%clk
0:03:08]} 8... O-O {[%clk 0:02:50.7]} 9. c3 {[%clk 0:03:09.5]} 9... e5 {[%clk
0:02:51.1]} 10. Re1 {[%clk 0:03:11]} 10... Nd7 {[%clk 0:02:51.1]} 11. Be3 {[%clk
0:03:10.8]} 11... Qe7 {[%clk 0:02:51.2]} 12. Qb3 {[%clk 0:03:10.1]} 12... Nb6
{[%clk 0:02:50.6]} 13. Rad1 {[%clk 0:03:10.3]} 13... Kh8 {[%clk 0:02:49.9]} 14.
Bb5 {[%clk 0:02:57.5]} 14... f5 {[%clk 0:02:27.3]} 15. Bxc6 {[%clk 0:02:48.8]}
15... bxc6 {[%clk 0:02:29.2]} 16. exf5 {[%clk 0:02:46.1]} 16... Rxf5 {[%clk
0:02:18.3]} 17. dxe5 {[%clk 0:02:46.7]} 17... dxe5 {[%clk 0:02:13.8]} 18. Nd2
{[%clk 0:02:39.3]} 18... Nd5 {[%clk 0:01:52.4]} 19. Ne4 {[%clk 0:02:36.4]} 19...
Qf7 {[%clk 0:01:39.4]} 20. c4 {[%clk 0:02:32.6]} 20... Nf4 {[%clk 0:01:36.6]}
21. Rd2 {[%clk 0:02:26]} 21... Rf8 {[%clk 0:01:34.1]} 22. Red1 {[%clk
0:02:26.5]} 22... g5 {[%clk 0:01:22.1]} 23. Rd7 {[%clk 0:01:48.8]} 23... Qg6
{[%clk 0:01:13.7]} 24. Rxc7 {[%clk 0:01:49.6]} 24... g4 {[%clk 0:01:08.7]} 25.
h4 {[%clk 0:01:26.7]} 25... Rh5 {[%clk 0:00:31.1]} 26. Qc2 {[%clk 0:00:37.1]}
26... Rxh4 {[%clk 0:00:22.7]} 27. Rd6 {[%clk 0:00:30.7]} 27... Qxe4 {[%clk
0:00:20.5]} 28. Qxe4 {[%clk 0:00:29]} 28... Ne2+ {[%clk 0:00:21.9]} 29. Kf1
{[%clk 0:00:30.4]} 29... Ng3+ {[%clk 0:00:23.8]} 30. Ke1 {[%clk 0:00:31.7]}
30... Nxe4 {[%clk 0:00:24.9]} 31. Rdxc6 {[%clk 0:00:33.2]} 31... Rh2 {[%clk
0:00:22.3]} 32. Rc8 {[%clk 0:00:32]} 32... Rxg2 {[%clk 0:00:21.1]} 33. Rxf8+
{[%clk 0:00:31.6]} 33... Bxf8 {[%clk 0:00:21.7]} 34. Rc7 {[%clk 0:00:28.4]}
34... g3 {[%clk 0:00:16.2]} 35. fxg3 {[%clk 0:00:28.2]} 35... Nxg3 {[%clk
0:00:15.2]} 36. Bg5 {[%clk 0:00:24.1]} 36... Ne4 {[%clk 0:00:12.7]} 37. Be3
{[%clk 0:00:21]} 37... h5 {[%clk 0:00:08.8]} 38. Rf7 {[%clk 0:00:10.6]} 38...
Bb4+ {[%clk 0:00:08.7]} 39. Kf1 {[%clk 0:00:12]} 39... Rxb2 {[%clk 0:00:08.5]}
40. Rf5 {[%clk 0:00:13.3]} 40... Ng3+ {[%clk 0:00:09.5]} 0-1

[Event "*** Titled Tuesday Blitz"]
[Site "Chess.com"]
[Date "2018.06.05"]
[Round "7"]
[White "Bryakin_Mikhail"]
[Black "Tibmat"]
[Result "1-0"]
[WhiteElo "2653"]
[BlackElo "2408"]
[TimeControl "180+2"]
[EndTime "14:41:33 PDT"]
[Termination "Bryakin_Mikhail won by resignation"]

1. d4 {[%clk 0:03:01.9]} 1... Nf6 {[%clk 0:02:59.1]} 2. c4 {[%clk 0:03:03.1]}
2... b6 {[%clk 0:02:59.2]} 3. f3 {[%clk 0:02:55.2]} 3... Nc6 {[%clk 0:02:59.6]}
4. e4 {[%clk 0:02:53.4]} 4... e5 {[%clk 0:03:00.3]} 5. d5 {[%clk 0:02:53.3]}
5... Nd4 {[%clk 0:03:01.7]} 6. Be3 {[%clk 0:02:50.5]} 6... Bc5 {[%clk
0:03:02.2]} 7. Bf2 {[%clk 0:02:43.6]} 7... O-O {[%clk 0:02:58.4]} 8. Ne2 {[%clk
0:02:43.5]} 8... Nxe2 {[%clk 0:02:37.5]} 9. Bxc5 {[%clk 0:02:40.1]} 9... bxc5
{[%clk 0:02:26.1]} 10. Bxe2 {[%clk 0:02:37]} 10... Nh5 {[%clk 0:02:17.2]} 11.
O-O {[%clk 0:02:37.3]} 11... Qg5 {[%clk 0:02:15.2]} 12. Nc3 {[%clk 0:02:29.1]}
12... Rb8 {[%clk 0:02:06.6]} 13. Rb1 {[%clk 0:02:25.8]} 13... d6 {[%clk
0:02:01.3]} 14. Qc1 {[%clk 0:02:08.2]} 14... Nf4 {[%clk 0:01:22.5]} 15. g3
{[%clk 0:02:05.9]} 15... Bh3 {[%clk 0:01:10.4]} 16. Kf2 {[%clk 0:01:46.9]} 16...
f5 {[%clk 0:00:32]} 17. Rg1 {[%clk 0:01:18.4]} 17... fxe4 {[%clk 0:00:20.7]} 18.
Nxe4 {[%clk 0:01:18.8]} 18... Qh6 {[%clk 0:00:17.4]} 19. gxf4 {[%clk 0:01:12.9]}
19... Rxf4 {[%clk 0:00:19.3]} 20. Qe3 {[%clk 0:01:02.9]} 20... Rbf8 {[%clk
0:00:19.6]} 21. Ke1 {[%clk 0:00:37.8]} 21... Bf5 {[%clk 0:00:20.3]} 22. Kd2
{[%clk 0:00:35.4]} 22... Bxe4 {[%clk 0:00:18.6]} 23. fxe4 {[%clk 0:00:35.8]}
23... Qh4 {[%clk 0:00:19]} 24. Qg3 {[%clk 0:00:32.3]} 24... Qh6 {[%clk
0:00:18.5]} 25. Qe3 {[%clk 0:00:28.9]} 25... Qh4 {[%clk 0:00:19.4]} 26. Bd3
{[%clk 0:00:20.5]} 26... Qxh2+ {[%clk 0:00:17.7]} 27. Kc3 {[%clk 0:00:20.5]}
27... Rf3 {[%clk 0:00:19.1]} 28. Qd2 {[%clk 0:00:12]} 28... Rf2 {[%clk 0:00:17]}
29. Qg5 {[%clk 0:00:13.2]} 29... g6 {[%clk 0:00:18.2]} 30. Rbf1 {[%clk
0:00:07.7]} 30... Rxf1 {[%clk 0:00:15.3]} 31. Rxf1 {[%clk 0:00:09.6]} 31... Rxf1
{[%clk 0:00:16.4]} 32. Bxf1 {[%clk 0:00:11.5]} 32... Qf2 {[%clk 0:00:18.1]} 33.
Bd3 {[%clk 0:00:10.6]} 33... Qd4+ {[%clk 0:00:18.2]} 34. Kc2 {[%clk 0:00:12.1]}
34... Qf2+ {[%clk 0:00:19.4]} 35. Qd2 {[%clk 0:00:13.7]} 35... Qd4 {[%clk
0:00:19.7]} 36. Qg2 {[%clk 0:00:13.4]} 36... Kg7 {[%clk 0:00:20.5]} 37. a4
{[%clk 0:00:14.4]} 37... a5 {[%clk 0:00:21.3]} 38. Qg5 {[%clk 0:00:12.5]} 38...
Qe3 {[%clk 0:00:19.9]} 39. Qxe3 {[%clk 0:00:13.1]} 1-0